{"text_format":"1","workbook":"xlsx","n_sheets":3,"sheets":["جدول رقم 1_العلمية","جدول رقم 2","ورقة1"],"not_rendered":{"charts":0,"images":3,"macros":1,"external_links":0,"defined_names":7,"comments":0,"pivot_tables":0},"unopened":[],"bounds":{"document_bytes":16777216,"sheet_cells":100000,"rows_first":2000,"rows_last":500,"rows_between":2000,"halvings":0,"cell_chars":16384,"cell_head_chars":4096},"cells_cut":0,"cells_raw":0,"read":"whole","date_system":"1900"}

{"sheet":"جدول رقم 1_العلمية","index":0,"n_rows":22,"n_cols":14,"rows_kept":22,"cut":false,"hidden":false,"merged":[[0,4,4,13],[5,0,6,13],[20,0,20,4],[8,0,19,0],[8,1,11,1],[8,13,19,13],[12,1,15,1],[16,1,19,1]]}
["الكلية"]
["القسم"]
["اسم التدريسي"]
["اللقب الحالي",null,"تاريخ الاستحقاق"]
["الترقية المطلوبة","أستاذ مساعد","تاريخ الاستحقاق"]
["جـــــــــــــــــــــــــــــــــــــــــــــدول رقــــــــــــــــــــــــم (1/أ) احتساب نقاط المراتب العلمية في التخصصات العلمية"]
[]
["المرتبة العلمية","تصنيف المجلة","عدد المشتركين","عدد البحوث","النقاط","المجموع",null,null,null,null,null,null,null,"مجومع نقاط المرتبة العلمية"]
["أستاذ مساعد","مجلات علمية ذات معامل تأثير كـ (Impact factor) مطبوعة او اليكترونية"," منفرد",0,20,{"$f":"D9*E9","v":0},null,null,null,null,null,null,null,{"$f":"SUM(F9:F20)","v":0}]
[null,null,"المشترك الاسم الاول ",null,20,0]
[null,null,"المشترك الاسم الثاني",0,16,0]
[null,null,"المشترك الاسم الثالث ",null,14,0]
[null,"مجلات عالمية مطبوعة او اليكترونية"," منفرد",null,10,0]
[null,null,"المشترك الاسم الاول ",null,10,0]
[null,null,"المشترك الاسم الثاني",null,8,0]
[null,null,"المشترك الاسم الثالث ",null,7,0]
[null,"مجلات عربية وعراقية مطبوعة او اليكترونية"," منفرد",null,5,0]
[null,null,"المشترك الاسم الاول ",null,5,0]
[null,null,"المشترك الاسم الثاني",0,4,0]
[null,null,"المشترك الاسم الثالث ",null,3.5,0]
["المجموع",null,null,null,null,{"$f":"SUM(F9:F20)","v":0},null,null,null,null,null,null,null,"مستوفي"]
["مصادقة اعضاء اللجنة العلمية"]

{"sheet":"جدول رقم 2","index":1,"n_rows":61,"n_cols":8,"rows_kept":61,"cut":false,"hidden":false,"merged":[[0,7,4,7],[57,1,58,3],[57,0,58,0],[57,4,58,4],[57,5,58,5],[57,6,58,6],[7,0,18,0],[11,1,14,2],[15,1,18,2],[5,0,6,8],[36,0,38,0],[36,7,38,7],[27,0,28,0],[32,0,33,0],[32,7,33,7],[19,0,26,0],[19,7,26,7],[30,0,31,0],[30,7,31,7],[38,1,38,3],[59,0,59,4],[30,1,30,3],[31,1,31,3],[32,1,32,3],[33,1,33,3],[36,1,36,3],[37,1,37,3],[39,1,39,3],[47,0,50,0],[55,0,56,0],[34,0,35,0],[34,1,34,3],[35,1,35,3],[40,1,40,3],[52,1,52,3],[51,1,51,3],[55,7,56,7],[57,7,58,7],[7,7,18,7],[7,1,10,2],[27,1,27,3],[28,1,28,3],[29,1,29,3],[27,7,28,7],[19,1,22,2],[23,1,26,2],[56,1,56,3],[55,1,55,3],[54,1,54,3],[53,1,53,3],[49,1,50,3],[47,1,48,3],[46,1,46,3],[45,1,45,3],[44,1,44,3],[0,3,0,6],[1,3,1,6],[2,3,2,6],[43,1,43,3],[42,1,42,3],[41,1,41,3],[3,3,3,6],[4,3,4,6]]}
["الكلية"]
["القسم"]
["اسم التدريسي"]
["اللقب الحالي",null,"تاريخ الاستحقاق"]
["الترقية المطلوبة","أستاذ مساعد","تاريخ الاستحقاق"]
["جــــــــــــدول رقـــــــــــم (2) النشاطات وخدمة المجتمع"]
[]
["كتاب مؤلف او مترجم باستثناء صفحات الفهارس والفواصل والعناوين وعلى ان يكون حاصل على الترقيم الدولي المعياري للكتب (ISBN)","منفرد",null,"اقل من 100 صفحة",10,null,{"$f":"E8*F8","v":0},"مسجل ضمن الخطة العلمية للقسم العلمي ومثبت في قواعد البيانات"]
[null,null,null,"100-200 صفحة",15,null,0]
[null,null,null,"200-300 صفحة",20,null,0]
[null,null,null,"300 صفحة فما فوق",25,null,0]
[null,"مشترك مع مؤلف واحد",null,"اقل من 100 صفحة",10,null,0]
[null,null,null,"100-200 صفحة",15,null,0]
[null,null,null,"200-300 صفحة",20,null,0]
[null,null,null,"300 صفحة فما فوق",25,null,0]
[null,"مشترك مع مؤلفين",null,"اقل من 100 صفحة",5,null,0]
[null,null,null,"100-200 صفحة",10,null,0]
[null,null,null,"200-300 صفحة",15,null,0]
[null,null,null,"300 صفحة فما فوق",20,null,0]
["بحث منشور في مؤتمر علمي","داخل العراق",null,"منفرد",5,null,{"$f":"E20*F20","v":0},"مسجل ضمن الخطة العلمية للقسم العلمي ومثبت في قواعد البيانات"]
[null,null,null,"المشترك الاسم الاول ",5,null,0]
[null,null,null,"المشترك الاسم الثاني",4,null,0]
[null,null,null,"المشترك الاسم الثالث ",3.5,null,0]
[null,"خارج العراق",null,"منفرد",10,null,0]
[null,null,null,"المشترك الاسم الاول ",10,null,0]
[null,null,null,"المشترك الاسم الثاني",8,null,0]
[null,null,null,"المشترك الاسم الثالث ",7,null,0]
["دراسة علمية تعالج مشكلة في المجتمع العراقي","في التخصص",null,null,15,null,0,"تكون مقدمة الى جهة رسمية ومصادق عليها من الجهة اعلاه وتعالج مشكلة واقعية في المجتمع"]
[null,"خارج التخصص",null,null,10,null,0]
["مقال مراجـعة علمية subject review","5 نقطة لكل مقال",null,null,5,null,0,"على ان لا تزيد عن 10 نقاط"]
["براءة اختراع","دولية",null,null,25,null,0,"مصادق عليها من الجهات الرسمية"]
[null,"محلية",null,null,10,null,0]
["اوسمة علمية دولية","دولية",null,null,10,null,0,"لجميع الاوسمة الحاص عليها"]
[null,"محلية",null,null,5,null,0]
["تقييم البحوث العلمية او مراجعة كتاب book review","داخل العراق نقطة عن كل بحث او مراجعة كتاب",null,null,1,null,0,"عن ان لا تزيد عن 5 نقاط"]
[null,"خارج العراق نقطتين عن كل بحث او مراجعة كتاب",null,null,2,null,0,"عن ان لا تزيد عن 6 نقاط"]
["معدل تقييم الاداء","من 70-79",null,null,6,null,0," "]
[null,"من 80-89 نقطة",null,null,8,null,0]
[null,"من 90-99 نقطة",null,null,10,null,0]
["المشاركة في اللجان الامتحانية","نقطتين عن كل لجنة",null,null,2,null,0,"عن ان لا تزيد عن 10 نقاط "]
["المشاركة كمحاضر في دورات تدريبية او في التعليم المستمر","نقطتين عن كل دورة",null,null,2,null,0,"على ان لا تزيد عن 10 نقاط"]
["العمل في المستشفيات التعليمية"," ",null,null,15,null,0," "]
["رئيس (مدير) تحرير مجلة علمية",null,null,null,10,null,0]
["عضو هيئة تحرير المجلة",null,null,null,5,null,0]
["مسؤول الوحدة الادارية لضمان الجودة",null,null,null,3,null,0]
["المشاركة في استحداث الاقسام العلمية","نقطتين عن كل استحداث ",null,null,2,null,0,"على ان لا تزيد عن 10 نقاط"]
["المشاركة في الاشراف التربوي","نقطة عن كل تكليف",null,null,1,null,0,"على ان لا تزيد عن 10 نقاط"]
["المشاركة في الاشراف على طلبة الماجستير والدكتوراه خارج العراق","الماجستير",null,null,5,null,0,"الطالب الواجد"]
[null,null,null,null,10,null,0,"للطالبين فأكثر"]
[null,"الدكتوراه",null,null,10,null,0,"الطالب الواجد"]
[null,null,null,null,20,null,0,"للطالبين فأكثر "]
["المشاركة في النشاطات اللاصفية للطلبة (اشراف على ابتكار او تصنيع ،اشراف على عمل تطوعي طلابي ،اشراف على مهرجان ثقافي","نقطتين غن كل مشاركة",null,null,2,null,0,"على ان لا تزيد عن 10 نقاط"]
["المشاركة في المؤتمرات كعضو في لجنة تحضيرية او لجنة علمية او لجنة استقبال","نقطتين عن كل لجنه",null,null,2,null,0,"على ان لا تزيد عن 10 نقاط"]
["الاشراف على الاقسام الداخلية","خمس نقاط عن كل عام تكليف",null,null,5,null,0,"على ان لا تزيد عن 10 نقاط"]
["المشاركة في اللجان الوزارية","خمس نقاط عن كل لجنه",null,null,5,null,0,"على ان لا تزيد عن 10 نقاط"]
["تعاون تربوي مع الجامعات ومنظمات عالمية","مشاركة واحدة",null,null,5,null,0,"على ان لا تزيد عن 10 نقاط"]
[null,"مشاركتين او اكثر",null,null,10,null,0]
["الحصول على مؤشر هيرتش (H1) الحاصل عليها التدريسي من Scopus","نقطة واحدة لكل قيمة من قيم (H1)",null,null,1,null,0,"على ان لا تزيد عن 30 نقطة"]
[]
["المجموع الكلي للنقاط",null,null,null,null,null,{"$f":"SUM(G8:G59)","v":0}]
["مصادقة اعضاء اللجنة العلمية"]

{"sheet":"ورقة1","index":2,"n_rows":4,"n_cols":2,"rows_kept":4,"cut":false,"hidden":true,"merged":[]}
["أختر الترقية المطلوبة","مدرس مساعد"]
["مدرس","مدرس"]
["أستاذ مساعد","أستاذ مساعد"]
["أستاذ","أستاذ"]